[Event "*** Titled Tuesday Blitz"]
[Site "Chess.com"]
[Date "2019.08.06"]
[Round "3"]
[White "wonderfultime"]
[Black "giantslayer83"]
[Result "0-1"]
[WhiteElo "2872"]
[BlackElo "2641"]
[TimeControl "180+2"]
[EndTime "13:38:25 PDT"]
[Termination "giantslayer83 won on time"]

1. d4 {[%clk 0:02:58.2]} 1... Nf6 {[%clk 0:03:00.3]} 2. Nf3 {[%clk 0:02:59.3]}
2... e6 {[%clk 0:03:00.6]} 3. Bf4 {[%clk 0:03:00.2]} 3... c5 {[%clk 0:03:00.6]}
4. c3 {[%clk 0:03:01.5]} 4... b6 {[%clk 0:03:00.7]} 5. e3 {[%clk 0:03:01.6]}
5... Bb7 {[%clk 0:03:01.8]} 6. Bd3 {[%clk 0:03:02.9]} 6... d6 {[%clk 0:02:59.3]}
7. O-O {[%clk 0:03:03.3]} 7... Nbd7 {[%clk 0:03:00.1]} 8. h3 {[%clk 0:03:04.5]}
8... Be7 {[%clk 0:02:59.2]} 9. Nbd2 {[%clk 0:03:04.4]} 9... O-O {[%clk
0:03:00.2]} 10. a4 {[%clk 0:03:05.7]} 10... a6 {[%clk 0:02:57.7]} 11. Bh2 {[%clk
0:03:06.6]} 11... cxd4 {[%clk 0:02:38.2]} 12. cxd4 {[%clk 0:02:57.8]} 12... Nd5
{[%clk 0:02:33.8]} 13. Qb3 {[%clk 0:02:55.9]} 13... a5 {[%clk 0:02:33.7]} 14.
Rfc1 {[%clk 0:02:46]} 14... Nb4 {[%clk 0:02:33.8]} 15. Bb5 {[%clk 0:02:47.4]}
15... Nf6 {[%clk 0:02:32.5]} 16. Qd1 {[%clk 0:02:47]} 16... Ne4 {[%clk
0:02:28.9]} 17. Nxe4 {[%clk 0:02:45.2]} 17... Bxe4 {[%clk 0:02:29]} 18. Nd2
{[%clk 0:02:47.1]} 18... Bg6 {[%clk 0:02:28]} 19. Bf1 {[%clk 0:02:12.3]} 19...
Rc8 {[%clk 0:02:25.5]} 20. Rxc8 {[%clk 0:02:06.4]} 20... Qxc8 {[%clk 0:02:25.5]}
21. Rc1 {[%clk 0:02:01]} 21... Qb7 {[%clk 0:02:20.5]} 22. Nc4 {[%clk 0:01:45.8]}
22... Rd8 {[%clk 0:02:09.1]} 23. Na3 {[%clk 0:01:32]} 23... Rc8 {[%clk
0:02:05.7]} 24. Nb5 {[%clk 0:01:31.5]} 24... d5 {[%clk 0:01:35.4]} 25. Rc3
{[%clk 0:01:20.6]} 25... h6 {[%clk 0:01:26.1]} 26. Qc1 {[%clk 0:01:10.2]} 26...
Rc6 {[%clk 0:01:26.9]} 27. Rxc6 {[%clk 0:00:35.2]} 27... Qxc6 {[%clk 0:01:27.7]}
28. Qxc6 {[%clk 0:00:35.4]} 28... Nxc6 {[%clk 0:01:29.6]} 29. Bc7 {[%clk
0:00:37.1]} 29... Bd8 {[%clk 0:01:29.6]} 30. Bxd8 {[%clk 0:00:37.7]} 30... Nxd8
{[%clk 0:01:31.5]} 31. Nd6 {[%clk 0:00:39.6]} 31... Nc6 {[%clk 0:01:17.4]} 32.
Nc8 {[%clk 0:00:37.8]} 32... Kf8 {[%clk 0:01:12.9]} 33. Bb5 {[%clk 0:00:31.8]}
33... Nb4 {[%clk 0:01:11.6]} 34. Nxb6 {[%clk 0:00:32.9]} 34... Ke7 {[%clk
0:01:12.8]} 35. Nd7 {[%clk 0:00:33.8]} 35... Bd3 {[%clk 0:00:51.9]} 36. Nc5
{[%clk 0:00:34.6]} 36... Bxb5 {[%clk 0:00:52.6]} 37. axb5 {[%clk 0:00:36.5]}
37... Kd6 {[%clk 0:00:53.9]} 38. Kf1 {[%clk 0:00:18.7]} 38... Kc7 {[%clk
0:00:53.8]} 39. Ke2 {[%clk 0:00:20.2]} 39... Kb6 {[%clk 0:00:54.5]} 40. Nd7+
{[%clk 0:00:20.1]} 40... Kxb5 {[%clk 0:00:54.5]} 41. Ne5 {[%clk 0:00:22]} 41...
f6 {[%clk 0:00:54.3]} 42. Ng6 {[%clk 0:00:21.1]} 42... Na6 {[%clk 0:00:49.4]}
43. Nf4 {[%clk 0:00:21.8]} 43... Nc7 {[%clk 0:00:49.8]} 44. Kd2 {[%clk
0:00:22.8]} 44... Kb4 {[%clk 0:00:50.6]} 45. Kc2 {[%clk 0:00:23]} 45... a4
{[%clk 0:00:51]} 46. g4 {[%clk 0:00:22.1]} 46... Kc4 {[%clk 0:00:50.2]} 47. Nh5
{[%clk 0:00:21.2]} 47... Ne8 {[%clk 0:00:49.8]} 48. f4 {[%clk 0:00:22.3]} 48...
g6 {[%clk 0:00:45.4]} 49. Ng3 {[%clk 0:00:23.3]} 49... Nd6 {[%clk 0:00:46.5]}
50. h4 {[%clk 0:00:15.3]} 50... f5 {[%clk 0:00:44.5]} 51. g5 {[%clk 0:00:10.5]}
51... h5 {[%clk 0:00:43.9]} 52. Ne2 {[%clk 0:00:09.5]} 52... Ne4 {[%clk
0:00:34.3]} 53. Nc1 {[%clk 0:00:10.8]} 53... Nf2 {[%clk 0:00:34.1]} 54. b3+
{[%clk 0:00:12.2]} 54... axb3+ {[%clk 0:00:33.9]} 55. Nxb3 {[%clk 0:00:14.1]}
55... Ng4 {[%clk 0:00:34.6]} 56. Nc5 {[%clk 0:00:10.4]} 56... Nxe3+ {[%clk
0:00:34.6]} 57. Kd2 {[%clk 0:00:11.8]} 57... Kxd4 {[%clk 0:00:32.2]} 58. Nxe6+
{[%clk 0:00:13]} 58... Ke4 {[%clk 0:00:33.2]} 59. Nf8 {[%clk 0:00:14.3]} 59...
Nc4+ {[%clk 0:00:27.3]} 60. Ke2 {[%clk 0:00:10.7]} 60... d4 {[%clk 0:00:28.3]}
61. Nxg6 {[%clk 0:00:12]} 61... d3+ {[%clk 0:00:29.5]} 62. Kf2 {[%clk
0:00:11.7]} 62... Nb2 {[%clk 0:00:25.8]} 63. Ne5 {[%clk 0:00:03.5]} 63... d2
{[%clk 0:00:26.5]} 0-1

[Event "*** Titled Tuesday Blitz"]
[Site "Chess.com"]
[Date "2019.08.06"]
[Round "3"]
[White "Misha_Bilous"]
[Black "nikitakhoroshev"]
[Result "0-1"]
[WhiteElo "2441"]
[BlackElo "2598"]
[TimeControl "180+2"]
[EndTime "13:38:28 PDT"]
[Termination "nikitakhoroshev won by resignation"]

1. d4 {[%clk 0:03:01.9]} 1... Nf6 {[%clk 0:02:59.8]} 2. c4 {[%clk 0:03:03]} 2...
e6 {[%clk 0:02:55.7]} 3. Nf3 {[%clk 0:03:02.8]} 3... b6 {[%clk 0:02:56]} 4. g3
{[%clk 0:03:03.9]} 4... Bb7 {[%clk 0:02:54.7]} 5. Bg2 {[%clk 0:03:03]} 5... Bb4+
{[%clk 0:02:56.2]} 6. Bd2 {[%clk 0:03:03.7]} 6... Be7 {[%clk 0:02:57.2]} 7. O-O
{[%clk 0:02:57.6]} 7... O-O {[%clk 0:02:58.6]} 8. Bg5 {[%clk 0:02:58]} 8... h6
{[%clk 0:02:50.3]} 9. Bxf6 {[%clk 0:02:58.4]} 9... Bxf6 {[%clk 0:02:52.2]} 10.
Qc2 {[%clk 0:02:53.9]} 10... g6 {[%clk 0:02:48.9]} 11. Nc3 {[%clk 0:02:53.5]}
11... Bg7 {[%clk 0:02:48.9]} 12. d5 {[%clk 0:02:42.2]} 12... e5 {[%clk
0:02:43.2]} 13. e4 {[%clk 0:02:30.8]} 13... d6 {[%clk 0:02:42.2]} 14. Ne1 {[%clk
0:02:29.3]} 14... f5 {[%clk 0:02:23.4]} 15. exf5 {[%clk 0:01:51.3]} 15... gxf5
{[%clk 0:02:20.6]} 16. f4 {[%clk 0:01:52.3]} 16... e4 {[%clk 0:02:20]} 17. Qd2
{[%clk 0:01:47.1]} 17... Nd7 {[%clk 0:02:18.4]} 18. Nc2 {[%clk 0:01:41.4]} 18...
Qf6 {[%clk 0:02:13.8]} 19. Ne3 {[%clk 0:01:32]} 19... Nc5 {[%clk 0:02:00.3]} 20.
Bh3 {[%clk 0:01:27.2]} 20... Bc8 {[%clk 0:01:58]} 21. Nb5 {[%clk 0:01:21.1]}
21... Rf7 {[%clk 0:01:57.4]} 22. Rab1 {[%clk 0:00:37.4]} 22... Nd3 {[%clk
0:01:53]} 23. b3 {[%clk 0:00:38.6]} 23... a6 {[%clk 0:01:49]} 24. Na3 {[%clk
0:00:39.6]} 24... Bd7 {[%clk 0:01:43]} 25. Nac2 {[%clk 0:00:39.2]} 25... Re8
{[%clk 0:01:40]} 26. Ne1 {[%clk 0:00:38.7]} 26... Qc3 {[%clk 0:01:35.7]} 27.
Qxc3 {[%clk 0:00:28.5]} 27... Bxc3 {[%clk 0:01:37.6]} 28. N1g2 {[%clk
0:00:28.8]} 28... b5 {[%clk 0:01:24.4]} 29. Rfd1 {[%clk 0:00:21.4]} 29... Bd4
{[%clk 0:01:20.5]} 30. Kf1 {[%clk 0:00:21.9]} 30... Rb8 {[%clk 0:01:05]} 31. Ke2
{[%clk 0:00:21.8]} 31... Rff8 {[%clk 0:00:44.8]} 32. Nh4 {[%clk 0:00:20.2]}
32... Bxe3 {[%clk 0:00:34.9]} 33. Kxe3 {[%clk 0:00:20.1]} 33... Nb4 {[%clk
0:00:35.9]} 34. Rd2 {[%clk 0:00:13.8]} 34... bxc4 {[%clk 0:00:37.1]} 35. bxc4
{[%clk 0:00:14.9]} 35... Nc2+ {[%clk 0:00:35.5]} 36. Rxc2 {[%clk 0:00:14.6]}
36... Rxb1 {[%clk 0:00:37.4]} 37. Ng2 {[%clk 0:00:06.6]} 37... Ba4 {[%clk
0:00:35]} 38. Rd2 {[%clk 0:00:05.9]} 38... Rc1 {[%clk 0:00:34.7]} 39. Kd4 {[%clk
0:00:07]} 39... Bd7 {[%clk 0:00:17.4]} 40. Ne3 {[%clk 0:00:08.4]} 40... Kg7
{[%clk 0:00:16.9]} 41. Rb2 {[%clk 0:00:09.5]} 41... Bc8 {[%clk 0:00:12.9]} 42.
Rb8 {[%clk 0:00:09]} 42... Re1 {[%clk 0:00:10.3]} 43. Ra8 {[%clk 0:00:04.9]}
43... Re2 {[%clk 0:00:10.7]} 44. Ra7 {[%clk 0:00:05.5]} 44... Rd2+ {[%clk
0:00:11.4]} 45. Kc3 {[%clk 0:00:05.7]} 45... Rd3+ {[%clk 0:00:12.9]} 46. Kc2
{[%clk 0:00:07.3]} 46... Rxe3 {[%clk 0:00:14.5]} 47. Rxc7+ {[%clk 0:00:08.9]}
47... Kf6 {[%clk 0:00:15.7]} 48. c5 {[%clk 0:00:09.1]} 48... dxc5 {[%clk
0:00:13.5]} 49. d6 {[%clk 0:00:10.7]} 49... Rd3 {[%clk 0:00:13]} 50. Rc6 {[%clk
0:00:11.1]} 50... Bd7 {[%clk 0:00:12.7]} 51. Rxa6 {[%clk 0:00:12.1]} 51... Ke6
{[%clk 0:00:10.3]} 52. Bf1 {[%clk 0:00:12.7]} 52... Rxd6 {[%clk 0:00:11.7]} 53.
Bc4+ {[%clk 0:00:14.1]} 53... Ke7 {[%clk 0:00:13.2]} 54. Ra5 {[%clk 0:00:15.5]}
54... e3 {[%clk 0:00:10.9]} 55. Rxc5 {[%clk 0:00:16.3]} 55... Rc6 {[%clk
0:00:11.3]} 56. Re5+ {[%clk 0:00:17.4]} 56... Be6 {[%clk 0:00:11.8]} 57. Rxe3
{[%clk 0:00:15]} 57... Rxc4+ {[%clk 0:00:12.2]} 58. Kd2 {[%clk 0:00:16.9]} 58...
Rd8+ {[%clk 0:00:12.7]} 59. Ke1 {[%clk 0:00:18.1]} 59... Rc1+ {[%clk 0:00:13.7]}
60. Kf2 {[%clk 0:00:19.7]} 60... Rd2+ {[%clk 0:00:14.3]} 0-1

[Event "*** Titled Tuesday Blitz"]
[Site "Chess.com"]
[Date "2019.08.06"]
[Round "3"]
[White "Tjktiger"]
[Black "MarianPetrov"]
[Result "1-0"]
[WhiteElo "2828"]
[BlackElo "2549"]
[TimeControl "180+2"]
[EndTime "13:38:38 PDT"]
[Termination "Tjktiger won by resignation"]

1. c4 {[%clk 0:03:01.1]} 1... g6 {[%clk 0:03:00.2]} 2. Nc3 {[%clk 0:03:01.6]}
2... Bg7 {[%clk 0:03:01.6]} 3. d4 {[%clk 0:02:57.1]} 3... c5 {[%clk 0:03:02.1]}
4. d5 {[%clk 0:02:56.7]} 4... Nf6 {[%clk 0:03:02.8]} 5. g3 {[%clk 0:02:56.3]}
5... O-O {[%clk 0:03:02.7]} 6. Bg2 {[%clk 0:02:57.2]} 6... d6 {[%clk 0:03:04.2]}
7. Nf3 {[%clk 0:02:58.4]} 7... e5 {[%clk 0:03:04.9]} 8. O-O {[%clk 0:02:59.3]}
8... Nbd7 {[%clk 0:03:04.2]} 9. e4 {[%clk 0:02:54.1]} 9... Ne8 {[%clk
0:03:05.2]} 10. Ne1 {[%clk 0:02:54.6]} 10... f5 {[%clk 0:03:06.3]} 11. Nd3
{[%clk 0:02:54.6]} 11... Nef6 {[%clk 0:02:47.7]} 12. Qe2 {[%clk 0:02:35]} 12...
fxe4 {[%clk 0:02:45.3]} 13. Nxe4 {[%clk 0:02:35.6]} 13... Nxe4 {[%clk 0:02:47]}
14. Bxe4 {[%clk 0:02:37.5]} 14... Nf6 {[%clk 0:02:48.6]} 15. Bg5 {[%clk
0:02:20.7]} 15... Bh3 {[%clk 0:02:30.4]} 16. Bg2 {[%clk 0:02:14.5]} 16... Bf5
{[%clk 0:02:18.6]} 17. f4 {[%clk 0:02:03.9]} 17... exf4 {[%clk 0:02:15.2]} 18.
Nxf4 {[%clk 0:01:58.7]} 18... Qd7 {[%clk 0:02:11.1]} 19. Ne6 {[%clk 0:01:55.5]}
19... Rfe8 {[%clk 0:02:02.1]} 20. Rae1 {[%clk 0:01:54.4]} 20... Ng4 {[%clk
0:01:48.1]} 21. Kh1 {[%clk 0:01:45.9]} 21... Ne5 {[%clk 0:01:46.5]} 22. Rxf5
{[%clk 0:01:04.5]} 22... gxf5 {[%clk 0:01:46.1]} 23. Rf1 {[%clk 0:01:05.9]}
23... Qf7 {[%clk 0:01:41.6]} 24. Bh3 {[%clk 0:00:37.2]} 24... Rxe6 {[%clk
0:01:28.7]} 25. dxe6 {[%clk 0:00:38]} 25... Qxe6 {[%clk 0:01:29.2]} 26. Bxf5
{[%clk 0:00:38.2]} 26... Qe8 {[%clk 0:01:30.2]} 27. Be4 {[%clk 0:00:30.3]} 27...
Kh8 {[%clk 0:01:29.3]} 28. b3 {[%clk 0:00:21.6]} 28... Rb8 {[%clk 0:01:26.2]}
29. a4 {[%clk 0:00:21.4]} 29... b6 {[%clk 0:01:27.1]} 30. Qg2 {[%clk 0:00:21.2]}
30... Qh5 {[%clk 0:01:26.5]} 31. Be7 {[%clk 0:00:13.5]} 31... Qh6 {[%clk
0:01:23.9]} 32. h4 {[%clk 0:00:10.2]} 32... Re8 {[%clk 0:01:23.2]} 33. Bg5
{[%clk 0:00:11.4]} 33... Qh5 {[%clk 0:01:24.1]} 34. Bd5 {[%clk 0:00:09.1]} 34...
Rf8 {[%clk 0:01:23.9]} 35. Rxf8+ {[%clk 0:00:09.2]} 35... Bxf8 {[%clk 0:01:25]}
36. Qf2 {[%clk 0:00:11.1]} 36... Bg7 {[%clk 0:01:22.8]} 37. Qf5 {[%clk 0:00:12]}
37... Qe8 {[%clk 0:01:00.6]} 38. Kg2 {[%clk 0:00:12.4]} 38... Qf8 {[%clk
0:00:53.8]} 39. Qe6 {[%clk 0:00:10.3]} 39... h6 {[%clk 0:00:41.6]} 40. Be7
{[%clk 0:00:10.7]} 40... Qe8 {[%clk 0:00:33.4]} 41. Qxd6 {[%clk 0:00:09.7]}
41... Ng6 {[%clk 0:00:25.4]} 42. Bc6 {[%clk 0:00:05.4]} 42... Qxe7 {[%clk
0:00:16.7]} 43. Qxg6 {[%clk 0:00:06.3]} 43... Qe2+ {[%clk 0:00:17.3]} 44. Kh3
{[%clk 0:00:07.9]} 44... Qf1+ {[%clk 0:00:15.1]} 45. Bg2 {[%clk 0:00:08.8]}
45... Qf6 {[%clk 0:00:14.5]} 46. Qg4 {[%clk 0:00:09.7]} 46... Bf8 {[%clk
0:00:13.9]} 47. Be4 {[%clk 0:00:09.7]} 47... Bd6 {[%clk 0:00:13.3]} 48. Qd7
{[%clk 0:00:10.9]} 48... Qe7 {[%clk 0:00:14]} 49. Qf5 {[%clk 0:00:12.3]} 49...
Qg7 {[%clk 0:00:10.5]} 50. Qc8+ {[%clk 0:00:12.2]} 50... Qf8 {[%clk 0:00:10.9]}
51. Qe6 {[%clk 0:00:13.8]} 51... Kg7 {[%clk 0:00:07.6]} 52. Qg6+ {[%clk
0:00:11.8]} 1-0

[Event "*** Titled Tuesday Blitz"]
[Site "Chess.com"]
[Date "2019.08.06"]
[Round "3"]
[White "Hanging_pointer"]
[Black "Schachspielerr"]
[Result "1-0"]
[WhiteElo "2474"]
[BlackElo "2651"]
[TimeControl "180+2"]
[EndTime "13:38:42 PDT"]
[Termination "Hanging_pointer won by resignation"]

1. e4 {[%clk 0:03:01.9]} 1... e5 {[%clk 0:03:00.2]} 2. Nf3 {[%clk 0:03:02.7]}
2... Nc6 {[%clk 0:03:01.2]} 3. Bc4 {[%clk 0:03:04.3]} 3... Bc5 {[%clk
0:03:01.6]} 4. d3 {[%clk 0:03:05.4]} 4... Nf6 {[%clk 0:03:02.6]} 5. O-O {[%clk
0:03:06.9]} 5... d6 {[%clk 0:03:03.6]} 6. c3 {[%clk 0:03:07.3]} 6... Bb6 {[%clk
0:03:02.3]} 7. a4 {[%clk 0:03:05.4]} 7... a6 {[%clk 0:03:01.5]} 8. b4 {[%clk
0:02:58]} 8... a5 {[%clk 0:02:59.1]} 9. b5 {[%clk 0:02:57.2]} 9... Ne7 {[%clk
0:02:59]} 10. Nbd2 {[%clk 0:02:23]} 10... Ng6 {[%clk 0:02:58.9]} 11. d4 {[%clk
0:02:23.1]} 11... O-O {[%clk 0:02:53.7]} 12. Re1 {[%clk 0:02:13.7]} 12... exd4
{[%clk 0:02:54.4]} 13. cxd4 {[%clk 0:02:10.3]} 13... d5 {[%clk 0:02:55.3]} 14.
exd5 {[%clk 0:02:11.1]} 14... Nxd5 {[%clk 0:02:57.2]} 15. Qb3 {[%clk 0:02:08.6]}
15... Ndf4 {[%clk 0:02:50.3]} 16. Ba3 {[%clk 0:02:05.5]} 16... Bf5 {[%clk
0:01:29.5]} 17. Bxf8 {[%clk 0:01:56.1]} 17... Qxf8 {[%clk 0:01:31.4]} 18. Ne4
{[%clk 0:01:20.1]} 18... h6 {[%clk 0:01:25.7]} 19. Ng3 {[%clk 0:01:10]} 19...
Bg4 {[%clk 0:01:00.7]} 20. Ne5 {[%clk 0:00:34.5]} 20... Nxe5 {[%clk 0:01:01.5]}
21. dxe5 {[%clk 0:00:35.7]} 21... Rd8 {[%clk 0:01:03]} 22. h3 {[%clk 0:00:31.8]}
22... Rd2 {[%clk 0:00:38.3]} 23. Ne4 {[%clk 0:00:29.6]} 23... Bxf2+ {[%clk
0:00:06.4]} 24. Nxf2 {[%clk 0:00:24.2]} 24... Qc5 {[%clk 0:00:03.4]} 25. Qe3
{[%clk 0:00:23.9]} 25... Qxc4 {[%clk 0:00:02.4]} 26. Qxd2 {[%clk 0:00:23.9]}
26... Ne2+ {[%clk 0:00:03.9]} 27. Rxe2 {[%clk 0:00:19.2]} 27... Bxe2 {[%clk
0:00:05.8]} 28. Re1 {[%clk 0:00:20]} 28... Bh5 {[%clk 0:00:06.4]} 29. Re4 {[%clk
0:00:19.3]} 29... Qe6 {[%clk 0:00:06.5]} 30. Re3 {[%clk 0:00:15.2]} 30... Bg6
{[%clk 0:00:07.6]} 31. Qd4 {[%clk 0:00:16.2]} 31... Qa2 {[%clk 0:00:08.3]} 32.
Ng4 {[%clk 0:00:14]} 32... Bf5 {[%clk 0:00:09.6]} 33. Kh2 {[%clk 0:00:14.6]}
33... Be6 {[%clk 0:00:10.7]} 34. Qf4 {[%clk 0:00:14.3]} 34... Bd5 {[%clk
0:00:11.4]} 35. Rg3 {[%clk 0:00:15.2]} 35... Kf8 {[%clk 0:00:13]} 36. Ne3 {[%clk
0:00:14.5]} 36... Be6 {[%clk 0:00:13.8]} 37. Nf5 {[%clk 0:00:15.7]} 37... g5
{[%clk 0:00:05.5]} 38. Qf3 {[%clk 0:00:12.2]} 38... Qb2 {[%clk 0:00:06.5]} 39.
Nxh6 {[%clk 0:00:08.2]} 39... Qxe5 {[%clk 0:00:08]} 40. Ng4 {[%clk 0:00:09.4]}
40... Qd6 {[%clk 0:00:09.4]} 41. Qe3 {[%clk 0:00:09.6]} 41... f5 {[%clk
0:00:08.3]} 42. Qe5 {[%clk 0:00:07]} 42... fxg4 {[%clk 0:00:07.6]} 43. Qxd6+
{[%clk 0:00:08]} 43... cxd6 {[%clk 0:00:09.5]} 44. hxg4 {[%clk 0:00:09.5]} 44...
Ke7 {[%clk 0:00:10.8]} 45. Rc3 {[%clk 0:00:10.4]} 45... Kd7 {[%clk 0:00:11.9]}
46. Kg3 {[%clk 0:00:11.5]} 46... Bd5 {[%clk 0:00:07]} 47. Rd3 {[%clk 0:00:11.4]}
47... Be4 {[%clk 0:00:08]} 48. Rd4 {[%clk 0:00:12.4]} 48... d5 {[%clk
0:00:09.1]} 49. Kf2 {[%clk 0:00:13.2]} 49... Kd6 {[%clk 0:00:10.4]} 50. g3
{[%clk 0:00:12.7]} 50... Kc5 {[%clk 0:00:11.6]} 51. Ke3 {[%clk 0:00:14.2]} 51...
Bg2 {[%clk 0:00:09.9]} 52. Kd3 {[%clk 0:00:11.4]} 52... Be4+ {[%clk 0:00:09.1]}
53. Kc3 {[%clk 0:00:12.8]} 53... Bf3 {[%clk 0:00:08.8]} 54. Rd2 {[%clk 0:00:11]}
54... Bxg4 {[%clk 0:00:09.9]} 55. Rf2 {[%clk 0:00:09.2]} 55... d4+ {[%clk
0:00:11.2]} 56. Kd3 {[%clk 0:00:08.5]} 56... Be6 {[%clk 0:00:12.6]} 57. Rc2+
{[%clk 0:00:05.4]} 57... Kd5 {[%clk 0:00:14]} 58. Rc7 {[%clk 0:00:05.1]} 58...
Bf5+ {[%clk 0:00:15.1]} 59. Kd2 {[%clk 0:00:06.1]} 59... Bb1 {[%clk 0:00:06.9]}
60. Rxb7 {[%clk 0:00:06.2]} 60... Kc4 {[%clk 0:00:08.6]} 61. Rd7 {[%clk
0:00:04.8]} 61... Kc5 {[%clk 0:00:08.8]} 62. Rc7+ {[%clk 0:00:05.2]} 62... Kb4
{[%clk 0:00:09.8]} 63. b6 {[%clk 0:00:06.5]} 63... Be4 {[%clk 0:00:10.9]} 64.
Rd7 {[%clk 0:00:05.8]} 64... Kc5 {[%clk 0:00:11.6]} 65. b7 {[%clk 0:00:06.7]}
1-0

[Event "*** Titled Tuesday Blitz"]
[Site "Chess.com"]
[Date "2019.08.06"]
[Round "3"]
[White "IMRosen"]
[Black "krzyzan94"]
[Result "1-0"]
[WhiteElo "2614"]
[BlackElo "2753"]
[TimeControl "180+2"]
[EndTime "13:38:52 PDT"]
[Termination "IMRosen won by resignation"]

1. d4 {[%clk 0:03:01.9]} 1... Nf6 {[%clk 0:02:56.2]} 2. Bf4 {[%clk 0:03:02.7]}
2... c5 {[%clk 0:02:48.3]} 3. e3 {[%clk 0:03:03.2]} 3... d6 {[%clk 0:02:42.4]}
4. Nf3 {[%clk 0:02:53.1]} 4... Nc6 {[%clk 0:02:40.5]} 5. c3 {[%clk 0:02:52.8]}
5... cxd4 {[%clk 0:02:40.1]} 6. exd4 {[%clk 0:02:54.7]} 6... g6 {[%clk
0:02:41.6]} 7. Bg3 {[%clk 0:02:54.3]} 7... Bg7 {[%clk 0:02:42.7]} 8. Be2 {[%clk
0:02:55.9]} 8... O-O {[%clk 0:02:44.3]} 9. O-O {[%clk 0:02:57.6]} 9... Ne4
{[%clk 0:02:43.4]} 10. Nbd2 {[%clk 0:02:55.7]} 10... Nxg3 {[%clk 0:02:44]} 11.
hxg3 {[%clk 0:02:57.6]} 11... e5 {[%clk 0:02:44.7]} 12. dxe5 {[%clk 0:02:50.9]}
12... dxe5 {[%clk 0:02:46.6]} 13. Nc4 {[%clk 0:02:52.5]} 13... Be6 {[%clk
0:02:46.9]} 14. Ng5 {[%clk 0:02:43.5]} 14... Bd5 {[%clk 0:02:44.3]} 15. Ne3
{[%clk 0:02:31.3]} 15... Qxg5 {[%clk 0:02:40.8]} 16. Qxd5 {[%clk 0:02:25.3]}
16... Rad8 {[%clk 0:02:41]} 17. Qb3 {[%clk 0:02:26.8]} 17... b6 {[%clk
0:02:36.7]} 18. Bf3 {[%clk 0:02:26.7]} 18... Ne7 {[%clk 0:02:29.5]} 19. Rad1
{[%clk 0:02:25.8]} 19... h5 {[%clk 0:02:26.7]} 20. Qa3 {[%clk 0:02:22.5]} 20...
a5 {[%clk 0:02:14.6]} 21. Qb3 {[%clk 0:02:21.3]} 21... Nc8 {[%clk 0:01:32.3]}
22. Nd5 {[%clk 0:02:12.9]} 22... h4 {[%clk 0:01:23]} 23. gxh4 {[%clk 0:02:04.3]}
23... Qxh4 {[%clk 0:01:24.9]} 24. Nxb6 {[%clk 0:02:05.8]} 24... Nd6 {[%clk
0:01:26.5]} 25. g3 {[%clk 0:01:49.8]} 25... Qg5 {[%clk 0:01:27.3]} 26. Rd5
{[%clk 0:01:38.9]} 26... Qf6 {[%clk 0:01:24.1]} 27. Bg2 {[%clk 0:01:33.1]} 27...
e4 {[%clk 0:01:15]} 28. Rfd1 {[%clk 0:01:14.5]} 28... e3 {[%clk 0:01:11.7]} 29.
fxe3 {[%clk 0:01:09.6]} 29... Bh6 {[%clk 0:01:11.4]} 30. c4 {[%clk 0:01:07.8]}
30... Nf5 {[%clk 0:01:11.7]} 31. e4 {[%clk 0:00:52.4]} 31... Ne3 {[%clk
0:00:29.6]} 32. Rxd8 {[%clk 0:00:46.7]} 32... Rxd8 {[%clk 0:00:30.4]} 33. Rxd8+
{[%clk 0:00:47]} 33... Qxd8 {[%clk 0:00:29.3]} 34. Nd5 {[%clk 0:00:48.3]} 34...
Ng4 {[%clk 0:00:30.5]} 35. Qf3 {[%clk 0:00:40.5]} 35... Qc8 {[%clk 0:00:28.1]}
36. Qxg4 {[%clk 0:00:39.8]} 36... Qxc4 {[%clk 0:00:19.1]} 37. Qc8+ {[%clk
0:00:34.8]} 37... Qxc8 {[%clk 0:00:18.8]} 38. Ne7+ {[%clk 0:00:36.2]} 38... Kf8
{[%clk 0:00:20.6]} 39. Nxc8 {[%clk 0:00:38.1]} 39... Be3+ {[%clk 0:00:20.8]} 40.
Kf1 {[%clk 0:00:37.7]} 40... Bc5 {[%clk 0:00:22.7]} 41. Ke2 {[%clk 0:00:23.6]}
41... Ke8 {[%clk 0:00:24.1]} 42. Kd3 {[%clk 0:00:25.1]} 42... Kd8 {[%clk
0:00:25.7]} 43. Bh3 {[%clk 0:00:26.7]} 43... Kc7 {[%clk 0:00:25.7]} 44. Kc4
{[%clk 0:00:27.4]} 44... Bf2 {[%clk 0:00:27.6]} 45. Ne7 {[%clk 0:00:26.4]} 45...
Bxg3 {[%clk 0:00:28.6]} 46. Nd5+ {[%clk 0:00:28]} 46... Kc6 {[%clk 0:00:30]} 47.
a3 {[%clk 0:00:25.7]} 47... Be5 {[%clk 0:00:29.2]} 48. b4 {[%clk 0:00:26.7]}
48... axb4 {[%clk 0:00:31.1]} 49. axb4 {[%clk 0:00:28.3]} 49... Kd6 {[%clk
0:00:29.7]} 50. b5 {[%clk 0:00:30.2]} 50... Bg3 {[%clk 0:00:26.1]} 51. Bg2
{[%clk 0:00:30]} 51... Be5 {[%clk 0:00:25.8]} 52. Bf1 {[%clk 0:00:29.5]} 52...
f5 {[%clk 0:00:25.9]} 53. exf5 {[%clk 0:00:29.8]} 53... gxf5 {[%clk 0:00:27.8]}
54. Be2 {[%clk 0:00:31]} 54... f4 {[%clk 0:00:27.6]} 55. Bf3 {[%clk 0:00:32.5]}
55... Kd7 {[%clk 0:00:28.6]} 56. Nb4 {[%clk 0:00:32.7]} 56... Kc7 {[%clk
0:00:28.7]} 57. Bc6 {[%clk 0:00:34.2]} 57... Kd6 {[%clk 0:00:26.5]} 58. Nd3
{[%clk 0:00:31.5]} 58... Bf6 {[%clk 0:00:25.9]} 59. Nxf4 {[%clk 0:00:32.4]}
59... Bd8 {[%clk 0:00:27.8]} 60. Nd5 {[%clk 0:00:33.4]} 60... Ba5 {[%clk
0:00:28.2]} 61. Nc3 {[%clk 0:00:33.5]} 61... Bb6 {[%clk 0:00:27.9]} 62. Ne4+
{[%clk 0:00:34.3]} 62... Ke5 {[%clk 0:00:29.1]} 63. Nc5 {[%clk 0:00:32.2]} 63...
Kd6 {[%clk 0:00:29.4]} 64. Na4 {[%clk 0:00:33.3]} 64... Ba5 {[%clk 0:00:28.6]}
65. Bd5 {[%clk 0:00:34]} 65... Bd2 {[%clk 0:00:21]} 66. b6 {[%clk 0:00:30.3]}
66... Be3 {[%clk 0:00:22.3]} 67. b7 {[%clk 0:00:31.6]} 67... Ba7 {[%clk
0:00:21.8]} 68. Nc3 {[%clk 0:00:31.4]} 68... Bb8 {[%clk 0:00:21]} 69. Kb5 {[%clk
0:00:31.6]} 69... Kc7 {[%clk 0:00:21]} 70. Ka6 {[%clk 0:00:31.2]} 70... Kd6
{[%clk 0:00:22.1]} 71. Bf3 {[%clk 0:00:31.9]} 71... Kc5 {[%clk 0:00:23.5]} 72.
Na4+ {[%clk 0:00:31.2]} 72... Kd6 {[%clk 0:00:23.5]} 73. Kb6 {[%clk 0:00:31.7]}
73... Kd7 {[%clk 0:00:23]} 74. Nc5+ {[%clk 0:00:32]} 74... Kd8 {[%clk
0:00:24.4]} 75. Nd3 {[%clk 0:00:32.7]} 75... Bg3 {[%clk 0:00:26.1]} 76. Nb4
{[%clk 0:00:32.5]} 76... Bf2+ {[%clk 0:00:26.8]} 77. Kc6 {[%clk 0:00:33.6]}
77... Bg3 {[%clk 0:00:25.3]} 78. Na6 {[%clk 0:00:35]} 78... Ke7 {[%clk 0:00:26]}
79. Nc7 {[%clk 0:00:34.1]} 1-0